[Event "*** SCC Grand Prix: Titled Tuesday Blitz"]
[Site "Chess.com"]
[Date "2020.07.21"]
[Round "8"]
[White "kidagent"]
[Black "Shuvalov"]
[Result "0-1"]
[WhiteElo "2204"]
[BlackElo "2485"]
[TimeControl "180+1"]
[EndTime "11:32:52 PDT"]
[Termination "Shuvalov won by resignation"]

1. e4 {[%clk 0:03:00.9]} 1... e6 {[%clk 0:02:58.7]} 2. d4 {[%clk 0:03:00.1]}
2... d5 {[%clk 0:02:58.9]} 3. Nc3 {[%clk 0:03:00.7]} 3... Bb4 {[%clk 0:02:58.2]}
4. e5 {[%clk 0:03:00.5]} 4... c5 {[%clk 0:02:58.1]} 5. a3 {[%clk 0:03:00.3]}
5... Bxc3+ {[%clk 0:02:58.2]} 6. bxc3 {[%clk 0:03:00.9]} 6... Ne7 {[%clk
0:02:58.9]} 7. Qg4 {[%clk 0:03:00.3]} 7... cxd4 {[%clk 0:02:58.1]} 8. Qxg7
{[%clk 0:02:56.8]} 8... Rg8 {[%clk 0:02:57.7]} 9. Qxh7 {[%clk 0:02:56.9]} 9...
Qc7 {[%clk 0:02:57.8]} 10. Ne2 {[%clk 0:02:55.8]} 10... Nbc6 {[%clk 0:02:56.4]}
11. h4 {[%clk 0:02:48.5]} 11... Bd7 {[%clk 0:02:50.6]} 12. Rh3 {[%clk
0:02:46.3]} 12... dxc3 {[%clk 0:02:30.3]} 13. Rxc3 {[%clk 0:02:41.7]} 13... Qxe5
{[%clk 0:01:55.6]} 14. Bf4 {[%clk 0:02:38.8]} 14... Qh8 {[%clk 0:01:53.4]} 15.
Qxh8 {[%clk 0:02:24.6]} 15... Rxh8 {[%clk 0:01:54.3]} 16. g3 {[%clk 0:02:24.8]}
16... f6 {[%clk 0:01:49.4]} 17. Bd6 {[%clk 0:02:18.9]} 17... Nf5 {[%clk
0:01:46.2]} 18. Bc5 {[%clk 0:02:15.8]} 18... b6 {[%clk 0:01:35]} 19. g4 {[%clk
0:02:00.9]} 19... Nxh4 {[%clk 0:01:25.9]} 20. Be3 {[%clk 0:01:57.9]} 20... Nf3+
{[%clk 0:01:12.9]} 21. Kd1 {[%clk 0:01:55]} 21... d4 {[%clk 0:01:08.2]} 22. Bg2
{[%clk 0:01:48.3]} 22... dxc3 {[%clk 0:00:59.2]} 23. Bxf3 {[%clk 0:01:48.1]}
23... O-O-O {[%clk 0:00:56.5]} 0-1

[Event "*** SCC Grand Prix: Titled Tuesday Blitz"]
[Site "Chess.com"]
[Date "2020.07.21"]
[Round "8"]
[White "DenisQ"]
[Black "r31415"]
[Result "1-0"]
[WhiteElo "2632"]
[BlackElo "2449"]
[TimeControl "180+1"]
[EndTime "11:32:54 PDT"]
[Termination "DenisQ won by resignation"]

1. c4 {[%clk 0:03:00.9]} 1... d6 {[%clk 0:02:56.4]} 2. Nc3 {[%clk 0:03:00]} 2...
f5 {[%clk 0:02:56.3]} 3. g3 {[%clk 0:02:59.4]} 3... Nf6 {[%clk 0:02:56.4]} 4.
Bg2 {[%clk 0:03:00]} 4... g6 {[%clk 0:02:57.3]} 5. Nf3 {[%clk 0:03:00.3]} 5...
Bg7 {[%clk 0:02:57.9]} 6. O-O {[%clk 0:03:00.3]} 6... O-O {[%clk 0:02:58.5]} 7.
d3 {[%clk 0:03:00.3]} 7... e5 {[%clk 0:02:58.5]} 8. Rb1 {[%clk 0:02:59.9]} 8...
Nc6 {[%clk 0:02:38.8]} 9. b4 {[%clk 0:02:57.7]} 9... h6 {[%clk 0:02:36.8]} 10.
b5 {[%clk 0:02:57.4]} 10... Ne7 {[%clk 0:02:37]} 11. c5 {[%clk 0:02:57.1]} 11...
g5 {[%clk 0:02:25.6]} 12. Qb3+ {[%clk 0:02:55.9]} 12... Kh7 {[%clk 0:02:22.9]}
13. Ba3 {[%clk 0:02:51.6]} 13... e4 {[%clk 0:02:11.2]} 14. dxe4 {[%clk
0:02:48.8]} 14... fxe4 {[%clk 0:02:11.1]} 15. cxd6 {[%clk 0:02:48.1]} 15... cxd6
{[%clk 0:02:10.8]} 16. Nd4 {[%clk 0:02:45]} 16... e3 {[%clk 0:01:30.7]} 17. fxe3
{[%clk 0:02:40.9]} 17... Ng4 {[%clk 0:01:30.8]} 18. Rxf8 {[%clk 0:02:37.3]}
18... Qxf8 {[%clk 0:01:30.1]} 19. Rf1 {[%clk 0:02:36.1]} 19... Qd8 {[%clk
0:01:22.4]} 20. Nd5 {[%clk 0:02:32.3]} 20... Nxd5 {[%clk 0:01:11.9]} 21. Bxd5
{[%clk 0:02:18.3]} 21... Qb6 {[%clk 0:01:11.8]} 22. Qd3+ {[%clk 0:02:14.3]}
22... Kh8 {[%clk 0:01:09.8]} 23. Qg6 {[%clk 0:02:08.3]} 23... Bd7 {[%clk
0:01:01.2]} 24. Rf7 {[%clk 0:02:06.5]} 24... Rg8 {[%clk 0:00:43.9]} 25. Rxd7
{[%clk 0:02:04.4]} 25... Nxe3 {[%clk 0:00:39.3]} 26. Bxg8 {[%clk 0:02:01.8]} 1-0

[Event "*** SCC Grand Prix: Titled Tuesday Blitz"]
[Site "Chess.com"]
[Date "2020.07.21"]
[Round "8"]
[White "CroissantNeuf"]
[Black "Supernotar"]
[Result "0-1"]
[WhiteElo "2444"]
[BlackElo "2718"]
[TimeControl "180+1"]
[EndTime "11:33:07 PDT"]
[Termination "Supernotar won by resignation"]

1. e4 {[%clk 0:03:00.9]} 1... c6 {[%clk 0:02:54.5]} 2. Nc3 {[%clk 0:03:00.1]}
2... d5 {[%clk 0:02:54.7]} 3. Nf3 {[%clk 0:03:00.6]} 3... Bg4 {[%clk 0:02:54.6]}
4. h3 {[%clk 0:02:59.5]} 4... Bxf3 {[%clk 0:02:54.9]} 5. Qxf3 {[%clk 0:03:00]}
5... e6 {[%clk 0:02:55.8]} 6. Be2 {[%clk 0:02:58]} 6... Nf6 {[%clk 0:02:55.3]}
7. O-O {[%clk 0:02:54.7]} 7... dxe4 {[%clk 0:02:55.5]} 8. Nxe4 {[%clk 0:02:54]}
8... Nxe4 {[%clk 0:02:56.1]} 9. Qxe4 {[%clk 0:02:53.8]} 9... Nd7 {[%clk
0:02:57]} 10. Rd1 {[%clk 0:02:48.3]} 10... Nf6 {[%clk 0:02:57]} 11. Qf3 {[%clk
0:02:40.7]} 11... Be7 {[%clk 0:02:56.7]} 12. d4 {[%clk 0:02:39.3]} 12... O-O
{[%clk 0:02:56.4]} 13. Bf4 {[%clk 0:02:30.2]} 13... Nd5 {[%clk 0:02:53.7]} 14.
Bd2 {[%clk 0:02:25.7]} 14... b5 {[%clk 0:02:52.2]} 15. c3 {[%clk 0:02:24]} 15...
Bf6 {[%clk 0:02:47.6]} 16. Bd3 {[%clk 0:02:22.3]} 16... g6 {[%clk 0:02:44.8]}
17. a4 {[%clk 0:02:13.5]} 17... a6 {[%clk 0:02:40.9]} 18. axb5 {[%clk
0:02:05.2]} 18... axb5 {[%clk 0:02:41.8]} 19. Rxa8 {[%clk 0:02:04.7]} 19... Qxa8
{[%clk 0:02:42.7]} 20. Be4 {[%clk 0:02:03.4]} 20... Bg7 {[%clk 0:02:42.5]} 21.
h4 {[%clk 0:01:58.9]} 21... h5 {[%clk 0:02:37.6]} 22. Bg5 {[%clk 0:01:52.6]}
22... Qa2 {[%clk 0:02:33.9]} 23. Bc1 {[%clk 0:01:34.2]} 23... Ra8 {[%clk
0:02:32.7]} 24. Qd3 {[%clk 0:01:24.6]} 24... Qb3 {[%clk 0:02:27.1]} 25. Re1
{[%clk 0:01:20.2]} 25... Ra1 {[%clk 0:02:24.7]} 26. Bxg6 {[%clk 0:00:29.7]}
26... fxg6 {[%clk 0:02:10.2]} 27. Qe4 {[%clk 0:00:30.6]} 27... Ne7 {[%clk
0:02:04.5]} 28. Qxg6 {[%clk 0:00:31.5]} 28... Nxg6 {[%clk 0:02:04.1]} 0-1

[Event "*** SCC Grand Prix: Titled Tuesday Blitz"]
[Site "Chess.com"]
[Date "2020.07.21"]
[Round "8"]
[White "DonPreuss"]
[Black "HanSchut"]
[Result "0-1"]
[WhiteElo "2165"]
[BlackElo "2311"]
[TimeControl "180+1"]
[EndTime "11:33:07 PDT"]
[Termination "HanSchut won by resignation"]

1. d4 {[%clk 0:03:00.9]} 1... Nf6 {[%clk 0:02:59.2]} 2. Nc3 {[%clk 0:03:00.7]}
2... d5 {[%clk 0:02:59.2]} 3. e4 {[%clk 0:03:01.2]} 3... dxe4 {[%clk 0:02:59.3]}
4. f3 {[%clk 0:03:01.7]} 4... Bf5 {[%clk 0:02:58.7]} 5. fxe4 {[%clk 0:03:01.5]}
5... Nxe4 {[%clk 0:02:59.6]} 6. Qf3 {[%clk 0:03:01.8]} 6... Nd6 {[%clk
0:02:45.7]} 7. Bf4 {[%clk 0:03:01.4]} 7... Bg6 {[%clk 0:02:43.8]} 8. Bxd6 {[%clk
0:02:36.2]} 8... cxd6 {[%clk 0:02:24.1]} 9. Qxb7 {[%clk 0:02:36.4]} 9... Nd7
{[%clk 0:02:22.4]} 10. Bb5 {[%clk 0:02:20.7]} 10... Rc8 {[%clk 0:02:22.1]} 11.
Qxa7 {[%clk 0:02:16]} 11... Qc7 {[%clk 0:02:08.2]} 12. Bxd7+ {[%clk 0:01:58.9]}
12... Qxd7 {[%clk 0:02:08.1]} 13. Qxd7+ {[%clk 0:01:58.8]} 13... Kxd7 {[%clk
0:02:09]} 14. O-O-O {[%clk 0:01:43.3]} 14... e6 {[%clk 0:02:08.1]} 15. a3 {[%clk
0:01:40.8]} 15... d5 {[%clk 0:02:08.2]} 16. Nf3 {[%clk 0:01:40.4]} 16... Bxa3
{[%clk 0:02:05.2]} 17. bxa3 {[%clk 0:01:37.8]} 17... Rxc3 {[%clk 0:02:04.9]} 18.
Kb2 {[%clk 0:01:36.6]} 18... Rhc8 {[%clk 0:02:04.5]} 19. Ne5+ {[%clk 0:01:35.9]}
19... Kd6 {[%clk 0:02:04.2]} 20. Nxg6 {[%clk 0:01:05.4]} 20... Rxc2+ {[%clk
0:02:02.4]} 21. Kb1 {[%clk 0:01:01.8]} 21... hxg6 {[%clk 0:02:02]} 22. Rc1
{[%clk 0:01:02.2]} 22... Rxc1+ {[%clk 0:01:55.8]} 23. Rxc1 {[%clk 0:01:01.9]}
23... Rxc1+ {[%clk 0:01:53.4]} 24. Kxc1 {[%clk 0:01:02.8]} 24... Kc6 {[%clk
0:01:53.2]} 25. h4 {[%clk 0:01:00.5]} 25... f6 {[%clk 0:01:53.4]} 26. g4 {[%clk
0:01:00]} 26... e5 {[%clk 0:01:54]} 27. Kc2 {[%clk 0:00:57]} 27... e4 {[%clk
0:01:44.8]} 28. h5 {[%clk 0:00:57]} 28... gxh5 {[%clk 0:01:44]} 29. gxh5 {[%clk
0:00:57.9]} 29... f5 {[%clk 0:01:44.4]} 0-1

[Event "*** SCC Grand Prix: Titled Tuesday Blitz"]
[Site "Chess.com"]
[Date "2020.07.21"]
[Round "8"]
[White "ecwinslow"]
[Black "pedro_nascimento85"]
[Result "1-0"]
[WhiteElo "2196"]
[BlackElo "1914"]
[TimeControl "180+1"]
[EndTime "11:33:15 PDT"]
[Termination "ecwinslow won by checkmate"]

1. e4 {[%clk 0:03:00.9]} 1... e6 {[%clk 0:02:59.7]} 2. d4 {[%clk 0:02:59.3]}
2... d5 {[%clk 0:03:00]} 3. Nd2 {[%clk 0:02:59.2]} 3... c5 {[%clk 0:02:59.3]} 4.
Ngf3 {[%clk 0:02:57.6]} 4... cxd4 {[%clk 0:02:56.3]} 5. Nxd4 {[%clk 0:02:56.9]}
5... dxe4 {[%clk 0:02:54.8]} 6. Nxe4 {[%clk 0:02:55.7]} 6... Nd7 {[%clk
0:02:51.2]} 7. Bf4 {[%clk 0:02:26.9]} 7... e5 {[%clk 0:02:40.3]} 8. Qe2 {[%clk
0:02:02]} 8... Be7 {[%clk 0:02:26.1]} 9. Nf5 {[%clk 0:01:42.2]} 9... exf4 {[%clk
0:01:56.7]} 10. O-O-O {[%clk 0:01:33.8]} 10... Ngf6 {[%clk 0:01:44.9]} 11. Nxf6+
{[%clk 0:01:17.5]} 11... gxf6 {[%clk 0:01:40.3]} 12. Qh5 {[%clk 0:00:46.1]}
12... O-O {[%clk 0:01:06.8]} 13. Qg4+ {[%clk 0:00:44.6]} 13... Kh8 {[%clk
0:01:04.5]} 14. Qg7# {[%clk 0:00:44.3]} 1-0

[Event "*** SCC Grand Prix: Titled Tuesday Blitz"]
[Site "Chess.com"]
[Date "2020.07.21"]
[Round "8"]
[White "AsaHoffmann"]
[Black "UKR_Master"]
[Result "1-0"]
[WhiteElo "2431"]
[BlackElo "2317"]
[TimeControl "180+1"]
[EndTime "11:33:24 PDT"]
[Termination "AsaHoffmann won by resignation"]

1. d4 {[%clk 0:02:58.7]} 1... Nf6 {[%clk 0:02:58.9]} 2. Bg5 {[%clk 0:02:55.7]}
2... e6 {[%clk 0:02:56.2]} 3. Nd2 {[%clk 0:02:55]} 3... d5 {[%clk 0:02:55.9]} 4.
e3 {[%clk 0:02:54.7]} 4... Nbd7 {[%clk 0:02:52.9]} 5. f4 {[%clk 0:02:53.9]} 5...
Be7 {[%clk 0:02:50.7]} 6. Ngf3 {[%clk 0:02:53.5]} 6... Ne4 {[%clk 0:02:50.4]} 7.
Bxe7 {[%clk 0:02:51.7]} 7... Qxe7 {[%clk 0:02:49.9]} 8. Nxe4 {[%clk 0:02:51.4]}
8... dxe4 {[%clk 0:02:49.6]} 9. Nd2 {[%clk 0:02:51.2]} 9... f5 {[%clk 0:02:47]}
10. Bc4 {[%clk 0:02:45.9]} 10... c5 {[%clk 0:02:44.6]} 11. c3 {[%clk 0:02:42.2]}
11... a6 {[%clk 0:02:44.1]} 12. a4 {[%clk 0:02:40.7]} 12... b6 {[%clk
0:02:43.8]} 13. O-O {[%clk 0:02:31.5]} 13... O-O {[%clk 0:02:43.1]} 14. Qb3
{[%clk 0:02:22.9]} 14... Rf6 {[%clk 0:02:19.4]} 15. d5 {[%clk 0:02:21.4]} 15...
Rb8 {[%clk 0:02:11.4]} 16. dxe6 {[%clk 0:02:15.4]} 16... Nf8 {[%clk 0:02:10]}
17. Rad1 {[%clk 0:02:11.4]} 17... Bxe6 {[%clk 0:02:09]} 18. Bxe6+ {[%clk
0:02:10]} 18... Qxe6 {[%clk 0:02:09]} 19. Qc4 {[%clk 0:02:03.3]} 19... Rd8
{[%clk 0:01:39.4]} 20. Qxa6 {[%clk 0:01:58.8]} 20... Qf7 {[%clk 0:01:30.9]} 21.
Nc4 {[%clk 0:01:53]} 21... Rd3 {[%clk 0:01:25.3]} 22. Ne5 {[%clk 0:01:50.7]}
22... Rxd1 {[%clk 0:01:19.7]} 23. Nxf7 {[%clk 0:01:49.3]} 23... Rxf1+ {[%clk
0:01:20.6]} 24. Kxf1 {[%clk 0:01:48.2]} 24... Kxf7 {[%clk 0:01:21.5]} 25. Qb7+
{[%clk 0:01:40.6]} 25... Kg6 {[%clk 0:01:19.3]} 26. h3 {[%clk 0:01:39.8]} 26...
h5 {[%clk 0:01:16.8]} 27. g4 {[%clk 0:01:38.3]} 27... hxg4 {[%clk 0:01:11.5]}
28. hxg4 {[%clk 0:01:37.9]} 28... fxg4 {[%clk 0:01:11.5]} 29. Qxe4+ {[%clk
0:01:36.7]} 29... Kh5 {[%clk 0:01:12.1]} 30. Qe5+ {[%clk 0:01:29.6]} 30... Kh6
{[%clk 0:01:06]} 31. Qg5+ {[%clk 0:01:28.9]} 31... Kh7 {[%clk 0:01:06.4]} 32.
Qxg4 {[%clk 0:01:28.3]} 32... Ng6 {[%clk 0:01:06.8]} 33. Kf2 {[%clk 0:01:22.8]}
33... Nh4 {[%clk 0:01:04.9]} 34. Qxh4+ {[%clk 0:01:21.5]} 1-0

[Event "*** SCC Grand Prix: Titled Tuesday Blitz"]
[Site "Chess.com"]
[Date "2020.07.21"]
[Round "8"]
[White "JesseKraai"]
[Black "Bastiandash"]
[Result "1-0"]
[WhiteElo "2528"]
[BlackElo "2367"]
[TimeControl "180+1"]
[EndTime "11:33:36 PDT"]
[Termination "JesseKraai won on time"]

1. Nf3 {[%clk 0:03:00.9]} 1... Nf6 {[%clk 0:02:59.7]} 2. c4 {[%clk 0:03:00.6]}
2... e6 {[%clk 0:02:59.4]} 3. g3 {[%clk 0:03:00.8]} 3... d5 {[%clk 0:02:57.7]}
4. Bg2 {[%clk 0:03:01]} 4... Be7 {[%clk 0:02:49.3]} 5. O-O {[%clk 0:03:01]} 5...
O-O {[%clk 0:02:49.3]} 6. d4 {[%clk 0:03:01.3]} 6... b6 {[%clk 0:02:44.9]} 7.
cxd5 {[%clk 0:02:58.6]} 7... exd5 {[%clk 0:02:41.2]} 8. Nc3 {[%clk 0:02:58.5]}
8... Bb7 {[%clk 0:02:40]} 9. Bf4 {[%clk 0:02:58.4]} 9... a6 {[%clk 0:02:38.3]}
10. Ne5 {[%clk 0:02:54.7]} 10... c5 {[%clk 0:02:34]} 11. dxc5 {[%clk 0:02:48.7]}
11... bxc5 {[%clk 0:02:29.7]} 12. Qb3 {[%clk 0:02:48.6]} 12... Ra7 {[%clk
0:01:10.6]} 13. Rfd1 {[%clk 0:02:47.5]} 13... d4 {[%clk 0:00:27]} 14. Bxb7
{[%clk 0:02:41.9]} 14... Qc7 {[%clk 0:00:26.9]} 15. Bf3 {[%clk 0:02:36.6]} 15...
dxc3 {[%clk 0:00:19.4]} 16. Nc6 {[%clk 0:02:30.8]} 16... Qxc6 {[%clk 0:00:12.2]}
17. Bxc6 {[%clk 0:02:29.1]} 17... Nxc6 {[%clk 0:00:13.1]} 18. bxc3 {[%clk
0:02:26.5]} 18... Rc8 {[%clk 0:00:07.5]} 19. Rab1 {[%clk 0:02:25.4]} 19... g6
{[%clk 0:00:06.7]} 20. Qa4 {[%clk 0:02:21.8]} 20... Kg7 {[%clk 0:00:06.2]} 21.
Rb6 {[%clk 0:02:20.7]} 21... Nd8 {[%clk 0:00:02.9]} 22. Be5 {[%clk 0:02:17.3]}
22... Ne6 {[%clk 0:00:01.7]} 23. Rd7 {[%clk 0:02:10.5]} 23... Rac7 {[%clk
0:00:01.9]} 24. Rxc7 {[%clk 0:01:55.6]} 24... Rxc7 {[%clk 0:00:01.7]} 25. Rxe6
{[%clk 0:01:52.5]} 1-0

[Event "*** SCC Grand Prix: Titled Tuesday Blitz"]
[Site "Chess.com"]
[Date "2020.07.21"]
[Round "8"]
[White "harlem4brew"]
[Black "denispopov"]
[Result "0-1"]
[WhiteElo "2094"]
[BlackElo "1819"]
[TimeControl "180+1"]
[EndTime "11:33:37 PDT"]
[Termination "denispopov won by resignation"]

1. d4 {[%clk 0:03:00.9]} 1... Nf6 {[%clk 0:02:59.5]} 2. Nf3 {[%clk 0:02:59.8]}
2... g6 {[%clk 0:02:59.7]} 3. c3 {[%clk 0:02:59.4]} 3... Bg7 {[%clk 0:03:00]} 4.
Bf4 {[%clk 0:02:58.7]} 4... O-O {[%clk 0:02:59.5]} 5. Nbd2 {[%clk 0:02:58]} 5...
d5 {[%clk 0:02:58.4]} 6. e3 {[%clk 0:02:57]} 6... Nbd7 {[%clk 0:02:56.3]} 7. Bd3
{[%clk 0:02:56]} 7... Nh5 {[%clk 0:02:56]} 8. Bg3 {[%clk 0:02:55.4]} 8... Nxg3
{[%clk 0:02:55.1]} 9. hxg3 {[%clk 0:02:54.3]} 9... e5 {[%clk 0:02:54.2]} 10.
dxe5 {[%clk 0:02:50.4]} 10... Nxe5 {[%clk 0:02:55.1]} 11. Nxe5 {[%clk
0:02:51.3]} 11... Bxe5 {[%clk 0:02:56]} 12. Nf3 {[%clk 0:02:50.7]} 12... Bg7
{[%clk 0:02:55.6]} 13. Qc2 {[%clk 0:02:49.8]} 13... c5 {[%clk 0:02:51]} 14.
O-O-O {[%clk 0:02:48.9]} 14... Qc7 {[%clk 0:02:42.9]} 15. Be2 {[%clk 0:02:47.1]}
15... Be6 {[%clk 0:02:40.5]} 16. Ng5 {[%clk 0:02:45]} 16... Bf5 {[%clk
0:02:30.7]} 17. Bd3 {[%clk 0:02:40.8]} 17... Bxd3 {[%clk 0:02:25.9]} 18. Qxd3
{[%clk 0:02:41.7]} 18... h6 {[%clk 0:02:25.7]} 19. Nf3 {[%clk 0:02:40.4]} 19...
Rad8 {[%clk 0:02:24.2]} 20. e4 {[%clk 0:02:37]} 20... dxe4 {[%clk 0:02:02.2]}
21. Qxe4 {[%clk 0:02:35.8]} 21... Rfe8 {[%clk 0:01:58.6]} 22. Qc4 {[%clk
0:02:34.5]} 22... a6 {[%clk 0:01:55.1]} 23. Nh4 {[%clk 0:02:32.3]} 23... b5
{[%clk 0:01:44.9]} 24. Qf4 {[%clk 0:02:26.5]} 24... Qa5 {[%clk 0:01:30.3]} 25.
a3 {[%clk 0:02:24.3]} 25... g5 {[%clk 0:01:27.8]} 26. Qf5 {[%clk 0:02:16]} 26...
gxh4 {[%clk 0:01:26.4]} 27. Rxh4 {[%clk 0:02:13.6]} 27... Rxd1+ {[%clk
0:01:25.9]} 28. Kxd1 {[%clk 0:02:12.7]} 28... Qd8+ {[%clk 0:01:22.4]} 29. Kc2
{[%clk 0:02:08.2]} 29... Re2+ {[%clk 0:01:18.2]} 30. Kb3 {[%clk 0:02:05]} 30...
Qe7 {[%clk 0:00:50]} 31. a4 {[%clk 0:02:00.3]} 31... Qe6+ {[%clk 0:00:43.9]} 32.
Qxe6 {[%clk 0:02:00.2]} 32... fxe6 {[%clk 0:00:44.1]} 33. axb5 {[%clk
0:02:00.9]} 33... axb5 {[%clk 0:00:44.6]} 34. c4 {[%clk 0:02:01.4]} 34... Rxb2+
{[%clk 0:00:41.6]} 35. Ka3 {[%clk 0:02:02.3]} 35... b4+ {[%clk 0:00:40]} 36. Ka4
{[%clk 0:02:03.2]} 36... Rc2 {[%clk 0:00:39.8]} 37. Kb5 {[%clk 0:02:02.2]} 37...
Bd4 {[%clk 0:00:38.4]} 38. Rxd4 {[%clk 0:02:01]} 38... cxd4 {[%clk 0:00:37.8]}
0-1

[Event "*** SCC Grand Prix: Titled Tuesday Blitz"]
[Site "Chess.com"]
[Date "2020.07.21"]
[Round "8"]
[White "WeAintSurePal"]
[Black "WildTricks"]
[Result "1-0"]
[WhiteElo "2324"]
[BlackElo "2495"]
[TimeControl "180+1"]
[EndTime "11:33:39 PDT"]
[Termination "WeAintSurePal won by resignation"]

1. d4 {[%clk 0:03:00.9]} 1... Nf6 {[%clk 0:02:58.9]} 2. Bf4 {[%clk 0:03:00.3]}
2... c5 {[%clk 0:02:58.2]} 3. dxc5 {[%clk 0:02:59.7]} 3... Na6 {[%clk
0:02:55.4]} 4. Qd4 {[%clk 0:02:43.1]} 4... e6 {[%clk 0:02:35.7]} 5. Bd6 {[%clk
0:02:41.7]} 5... Qa5+ {[%clk 0:02:32.7]} 6. Nc3 {[%clk 0:02:41.3]} 6... Nxc5
{[%clk 0:02:28.3]} 7. Bxf8 {[%clk 0:02:37.7]} 7... Rxf8 {[%clk 0:02:25.6]} 8. b4
{[%clk 0:02:34.3]} 8... Qa3 {[%clk 0:01:55.8]} 9. bxc5 {[%clk 0:02:23.4]} 9...
Qb2 {[%clk 0:01:55.1]} 10. Rd1 {[%clk 0:02:03.5]} 10... b6 {[%clk 0:01:47.5]}
11. c6 {[%clk 0:02:00.5]} 11... d5 {[%clk 0:01:45.3]} 12. e4 {[%clk 0:01:54.2]}
12... Qxc2 {[%clk 0:01:17.9]} 13. Bb5 {[%clk 0:01:47.7]} 13... Kd8 {[%clk
0:00:35.9]} 14. exd5 {[%clk 0:01:39.5]} 14... e5 {[%clk 0:00:35.7]} 15. c7+
{[%clk 0:01:35.3]} 15... Kxc7 {[%clk 0:00:32.4]} 16. Qxe5+ {[%clk 0:01:34.4]}
16... Kb7 {[%clk 0:00:22.8]} 17. Qe7+ {[%clk 0:01:30]} 17... Bd7 {[%clk
0:00:19.4]} 18. Bc6+ {[%clk 0:01:28.5]} 18... Ka6 {[%clk 0:00:17.6]} 19. Qa3+
{[%clk 0:01:27.2]} 1-0

[Event "*** SCC Grand Prix: Titled Tuesday Blitz"]
[Site "Chess.com"]
[Date "2020.07.21"]
[Round "8"]
[White "jacky72"]
[Black "jerry_77"]
[Result "1-0"]
[WhiteElo "2627"]
[BlackElo "2365"]
[TimeControl "180+1"]
[EndTime "11:33:49 PDT"]
[Termination "jacky72 won by resignation"]

1. d4 {[%clk 0:03:00.9]} 1... Nf6 {[%clk 0:02:59.7]} 2. c4 {[%clk 0:02:59.1]}
2... e6 {[%clk 0:02:57.4]} 3. Nf3 {[%clk 0:02:59.2]} 3... d5 {[%clk 0:02:55.7]}
4. Nc3 {[%clk 0:02:58.5]} 4... Bb4 {[%clk 0:02:55.7]} 5. cxd5 {[%clk 0:02:54.5]}
5... exd5 {[%clk 0:02:55.2]} 6. Bg5 {[%clk 0:02:54.4]} 6... O-O {[%clk 0:02:55]}
7. Qc2 {[%clk 0:02:52.3]} 7... c6 {[%clk 0:02:54.4]} 8. e3 {[%clk 0:02:51.6]}
8... Re8 {[%clk 0:02:54.2]} 9. Bd3 {[%clk 0:02:51.1]} 9... h6 {[%clk 0:02:54.6]}
10. Bh4 {[%clk 0:02:50.9]} 10... Nbd7 {[%clk 0:02:55.1]} 11. h3 {[%clk
0:02:49.9]} 11... Nf8 {[%clk 0:02:52.1]} 12. O-O-O {[%clk 0:02:48.3]} 12... Qa5
{[%clk 0:02:48.2]} 13. Kb1 {[%clk 0:02:47.2]} 13... Bxc3 {[%clk 0:02:46.3]} 14.
Qxc3 {[%clk 0:02:46.9]} 14... Qxc3 {[%clk 0:02:46.1]} 15. bxc3 {[%clk
0:02:47.8]} 15... Ne4 {[%clk 0:02:47]} 16. Bxe4 {[%clk 0:02:46.5]} 16... dxe4
{[%clk 0:02:47.9]} 17. Nd2 {[%clk 0:02:45.5]} 17... Be6 {[%clk 0:02:42]} 18. c4
{[%clk 0:02:42.6]} 18... f5 {[%clk 0:02:34.8]} 19. Ka1 {[%clk 0:02:39.9]} 19...
b6 {[%clk 0:02:32.8]} 20. Rb1 {[%clk 0:02:37.7]} 20... Kf7 {[%clk 0:02:31.9]}
21. Rhc1 {[%clk 0:02:37.6]} 21... Nd7 {[%clk 0:02:27.1]} 22. Bg3 {[%clk
0:02:37.4]} 22... Rec8 {[%clk 0:02:24.8]} 23. f3 {[%clk 0:02:37.4]} 23... Nf6
{[%clk 0:02:21.3]} 24. fxe4 {[%clk 0:02:36.7]} 24... Nxe4 {[%clk 0:02:21.2]} 25.
Nxe4 {[%clk 0:02:35.6]} 25... fxe4 {[%clk 0:02:22.1]} 26. Rf1+ {[%clk
0:02:36.1]} 26... Ke7 {[%clk 0:02:22.1]} 27. c5 {[%clk 0:02:35.6]} 27... b5
{[%clk 0:02:13]} 28. Be5 {[%clk 0:02:35.2]} 28... Kd7 {[%clk 0:02:06.8]} 29. Rf4
{[%clk 0:02:29.2]} 29... Rf8 {[%clk 0:01:48.7]} 30. Rbf1 {[%clk 0:02:28.5]}
30... Rxf4 {[%clk 0:01:47.9]} 31. Rxf4 {[%clk 0:02:29.4]} 31... Rg8 {[%clk
0:01:45.6]} 32. Bd6 {[%clk 0:02:17.3]} 32... Bd5 {[%clk 0:01:42.4]} 33. Kb2
{[%clk 0:02:11.7]} 33... a5 {[%clk 0:01:42.6]} 34. a3 {[%clk 0:02:11.5]} 34...
Ra8 {[%clk 0:01:31]} 35. Rg4 {[%clk 0:02:10]} 35... g5 {[%clk 0:01:26]} 36. h4
{[%clk 0:02:07.6]} 36... Be6 {[%clk 0:01:26.1]} 37. Rxe4 {[%clk 0:02:06.4]}
37... gxh4 {[%clk 0:01:26.1]} 38. Rxh4 {[%clk 0:02:05.1]} 38... Rg8 {[%clk
0:01:26.6]} 39. g3 {[%clk 0:02:05.3]} 39... Rg6 {[%clk 0:01:26.2]} 40. e4 {[%clk
0:02:03.3]} 40... Rg4 {[%clk 0:01:23.1]} 41. d5 {[%clk 0:01:56.6]} 41... cxd5
{[%clk 0:01:15]} 42. exd5 {[%clk 0:01:56.7]} 42... Bf5 {[%clk 0:01:13]} 43. Rxh6
{[%clk 0:01:56.2]} 43... Re4 {[%clk 0:01:04]} 44. c6+ {[%clk 0:01:53.6]} 44...
Ke8 {[%clk 0:01:03.4]} 45. Bf4 {[%clk 0:01:45.6]} 45... b4 {[%clk 0:01:01.7]}
46. axb4 {[%clk 0:01:45]} 46... axb4 {[%clk 0:01:02.6]} 47. d6 {[%clk
0:01:42.9]} 1-0